bitfinex/quotes_SOLUSD_20230402
["timestamp","ask_amount","ask_price","bid_price","bid_amount"]
[1680468665630,17.0,20.414,20.4,141.6841]
[1680468667837,10.0,20.415,20.4,141.6841]
[1680468668032,17.0,20.414,20.4,141.6841]
[1680468668233,17.0,20.416,20.4,141.6841]
[1680468669048,17.0,20.416,20.401,19.590185]
[1680468669844,10.0,20.424,20.406,10.0]
[1680468670351,10.0,20.424,20.408,10.0]
[1680468670545,10.0,20.424,20.41,10.0]
[1680468670742,10.0,20.424,20.41,38.57]
[1680468670941,115.1017,20.427,20.411,20.0]
[1680468671347,116.5274,20.43,20.412,10.0]
[1680468671556,19.590186,20.431,20.413,20.0]
[1680468671853,10.0,20.429,20.414,10.0]
[1680468672153,10.0,20.429,20.415,20.0]
[1680468672338,17.0,20.428,20.416,10.0]
[1680468672661,10.0,20.427,20.416,10.0]
[1680468672833,10.0,20.425,20.416,10.0]
[1680468673034,17.0,20.426,20.416,10.0]
[1680468674754,10.0,20.427,20.416,10.0]
[1680468675060,17.0,20.426,20.416,10.0]
[1680468676053,17.0,20.426,20.415,20.0]
[1680468678836,17.0,20.426,20.416,10.0]
[1680468686056,22.62934695,20.436,20.416,10.0]
[1680468686259,22.62934695,20.436,20.416,122.3728]
[1680468686557,10.0,20.43,20.416,122.3728]
[1680468686754,10.0,20.428,20.416,122.3728]
[1680468686944,17.0,20.427,20.416,122.3728]
[1680468687864,10.0,20.43,20.416,122.3728]
[1680468688065,10.0,20.428,20.416,122.3728]
[1680468688954,17.0,20.429,20.416,122.3728]
[1680468689150,10.0,20.43,20.416,122.3728]
[1680468689867,22.62934695,20.436,20.416,122.3728]
[1680468690163,10.0,20.43,20.416,122.3728]
[1680468694959,17.0,20.431,20.416,122.3728]
[1680468695777,10.0,20.436,20.42,28.53]
[1680468696068,10.0,20.437,20.421,10.0]
[1680468696454,10.0,20.437,20.422,20.0]
[1680468696653,10.0,20.437,20.423,10.0]
[1680468696853,10.0,20.437,20.425,10.0]
[1680468698066,10.0,20.435,20.425,10.0]
[1680468698370,10.0,20.435,20.423,10.0]
[1680468698565,10.0,20.435,20.425,10.0]
[1680468699268,17.0,20.436,20.425,10.0]
[1680468700570,17.0,20.436,20.423,10.0]
[1680468700773,17.0,20.436,20.425,10.0]
[1680468701472,10.0,20.437,20.425,10.0]
[1680468703150,10.0,20.437,20.423,10.0]
[1680468703356,10.0,20.437,20.425,10.0]
[1680468703760,10.0,20.437,20.423,10.0]
[1680468703959,17.0,20.436,20.424,20.0]
[1680468704258,10.0,20.435,20.424,20.0]
[1680468706375,17.0,20.436,20.424,20.0]
[1680468708973,17.0,20.436,20.424,10.0]
[1680468709164,17.0,20.436,20.426,10.0]
[1680468709365,17.0,20.436,20.424,10.0]
[1680468709680,17.0,20.436,20.425,20.0]
[1680468710067,10.0,20.435,20.423,20.0]
[1680468710276,10.0,20.433,20.423,20.0]
[1680468712365,10.0,20.431,20.423,20.0]
[1680468712577,10.0,20.429,20.423,20.0]
[1680468712779,10.0,20.431,20.423,20.0]
[1680468712982,17.0,20.43,20.423,20.0]
[1680468714263,10.0,20.431,20.423,20.0]
[1680468714463,17.0,20.43,20.423,20.0]
[1680468714874,17.0,20.432,20.423,20.0]
[1680468715181,10.0,20.431,20.423,20.0]
[1680468715379,17.0,20.43,20.423,20.0]
[1680468716783,10.0,20.431,20.423,20.0]
[1680468716986,17.0,20.43,20.423,20.0]
[1680468717868,10.0,20.431,20.423,20.0]
[1680468718067,17.0,20.43,20.423,20.0]
[1680468718974,17.0,20.432,20.423,20.0]
[1680468719589,10.0,20.433,20.423,20.0]
[1680468719771,10.0,20.431,20.423,20.0]
[1680468719971,17.0,20.43,20.423,20.0]
[1680468720277,17.0,20.432,20.423,20.0]
[1680468723167,10.0,20.433,20.423,20.0]
[1680468723374,10.0,20.431,20.423,20.0]
[1680468723595,17.0,20.43,20.423,20.0]
[1680468723888,17.0,20.432,20.423,20.0]
[1680468725071,10.0,20.433,20.423,20.0]
[1680468725272,17.0,20.432,20.423,20.0]
[1680468726488,10.0,20.433,20.423,20.0]
[1680468726673,17.0,20.432,20.423,20.0]
[1680468727686,10.0,20.433,20.423,20.0]
[1680468727874,17.0,20.432,20.423,20.0]
[1680468728789,15.01348885,20.436,20.423,20.0]
[1680468728992,10.0,20.433,20.423,20.0]
[1680468730276,17.0,20.434,20.423,20.0]
[1680468730993,10.0,20.434,20.423,20.0]
[1680468731196,17.0,20.433,20.423,20.0]
[1680468734180,10.0,20.433,20.423,20.0]
[1680468734385,17.0,20.432,20.423,20.0]
[1680468736004,10.0,20.433,20.423,20.0]
[1680468736205,17.0,20.432,20.423,20.0]
[1680468736909,10.0,20.435,20.423,20.0]
[1680468737099,100.96648933,20.465,20.423,20.0]
[1680468737401,10.0,20.435,20.423,20.0]
[1680468737614,17.0,20.436,20.424,10.0]
[1680468737800,17.0,20.436,20.425,20.0]
[1680468738108,17.0,20.436,20.426,10.0]
[1680468739190,10.0,20.436,20.426,10.0]
[1680468739387,17.0,20.435,20.426,10.0]
[1680468739603,17.0,20.435,20.425,20.0]
[1680468740500,10.0,20.437,20.425,20.0]
[1680468740693,17.0,20.436,20.425,20.0]
[1680468740899,10.0,20.437,20.426,10.0]
[1680468741203,10.0,20.444,20.426,10.0]
[1680468741406,10.0,20.444,20.428,10.0]
[1680468742405,10.0,20.441,20.428,10.0]
[1680468742598,10.0,20.439,20.428,10.0]
[1680468742799,10.0,20.437,20.427,115.7987]
[1680468743817,10.0,20.439,20.427,115.7987]
[1680468744017,10.0,20.437,20.427,115.7987]
[1680468744521,10.0,20.439,20.427,115.7987]
[1680468744710,10.0,20.437,20.427,115.7987]
[1680468744911,10.0,20.439,20.427,115.7987]
[1680468745208,17.0,20.438,20.427,115.7987]
[1680468746319,10.0,20.439,20.427,115.7987]
[1680468746523,17.0,20.438,20.427,115.7987]
[1680468746825,10.0,20.441,20.428,10.0]
[1680468747004,17.0,20.44,20.428,10.0]
[1680468752225,10.0,20.441,20.428,10.0]
[1680468752522,32.41262481,20.448,20.428,10.0]
[1680468752717,10.0,20.441,20.428,10.0]
[1680468752924,17.0,20.44,20.428,10.0]
[1680468754121,10.0,20.441,20.428,10.0]
[1680468755026,32.41262481,20.448,20.428,10.0]
[1680468755228,10.0,20.441,20.428,10.0]
[1680468756125,32.41262481,20.448,20.428,10.0]
[1680468756325,10.0,20.441,20.428,10.0]
[1680468757311,17.0,20.442,20.431,10.0]
[1680468758119,10.0,20.441,20.428,10.0]
[1680468758326,17.0,20.44,20.428,10.0]
[1680468763228,17.0,20.44,20.427,115.7987]
[1680468764423,17.0,20.44,20.427,130.47294869]
[1680468774034,10.0,20.439,20.427,14.67424869]
[1680468774330,10.0,20.439,20.415,19.576397]
[1680468774331,10.0,20.437,20.415,19.576397]
[1680468774538,10.0,20.429,20.415,19.576397]
[1680468774737,17.0,20.428,20.411,109.0353]
[1680468774940,10.0,20.427,20.411,109.0353]
[1680468775143,17.0,20.426,20.4,28.38]
[1680468775434,10.0,20.425,20.408,10.0]
[1680468775624,17.0,20.424,20.408,10.0]
[1680468775941,10.0,20.423,20.408,10.0]
[1680468776324,10.0,20.421,20.408,10.0]
[1680468776534,10.0,20.419,20.408,10.0]
[1680468777038,17.0,20.418,20.408,10.0]
[1680468778419,10.0,20.419,20.408,10.0]
[1680468778623,17.0,20.418,20.407,119.214]
[1680468780730,10.0,20.419,20.407,119.214]
[1680468780936,17.0,20.418,20.407,119.214]
[1680468782041,17.0,20.418,20.408,10.0]
[1680468782235,10.0,20.419,20.408,10.0]
[1680468782442,10.0,20.421,20.408,10.0]
[1680468782644,17.0,20.42,20.408,10.0]
[1680468783139,10.0,20.421,20.408,10.0]
[1680468783342,10.0,20.419,20.407,119.214]
[1680468784349,17.0,20.42,20.408,10.0]
[1680468786427,10.0,20.421,20.408,10.0]
[1680468786627,17.0,20.42,20.408,10.0]
[1680468791846,10.0,20.421,20.408,10.0]
[1680468792047,10.0,20.419,20.408,10.0]
[1680468792947,10.0,20.421,20.408,10.0]
[1680468793138,10.0,20.419,20.408,10.0]
[1680468793643,10.0,20.421,20.408,10.0]
[1680468793947,28.56,20.44,20.41,10.0]
[1680468794143,10.0,20.425,20.411,20.0]
[1680468794342,17.0,20.424,20.412,10.0]
[1680468794546,17.0,20.424,20.414,10.0]
[1680468794745,17.0,20.424,20.415,20.0]
[1680468795247,10.0,20.425,20.415,20.0]
[1680468795547,10.0,20.423,20.415,20.0]
[1680468795748,10.0,20.425,20.415,20.0]
[1680468795945,17.0,20.424,20.415,20.0]
[1680468797050,17.0,20.424,20.412,10.0]
[1680468797051,17.0,20.424,20.414,10.0]
[1680468797251,17.0,20.424,20.416,10.0]
[1680468797635,17.0,20.424,20.414,10.0]
[1680468797835,10.0,20.425,20.416,10.0]
[1680468798045,10.0,20.423,20.414,10.0]
[1680468798248,10.0,20.425,20.416,10.0]
[1680468798450,10.0,20.423,20.414,10.0]
[1680468798751,10.0,20.425,20.416,10.0]
[1680468799049,10.0,20.423,20.414,10.0]
[1680468799234,10.0,20.425,20.416,10.0]
[1680468799431,10.0,20.423,20.414,10.0]
[1680468799654,10.0,20.425,20.416,10.0]
[1680468799851,10.0,20.423,20.414,10.0]
[1680468800162,10.0,20.423,20.416,10.0]
[1680468800337,17.0,20.424,20.415,20.0]
[1680468802256,10.0,20.424,20.415,20.0]
[1680468802934,10.0,20.424,20.414,10.0]
[1680468803138,17.0,20.425,20.415,20.0]
[1680468806547,17.0,20.425,20.414,10.0]
[1680468806744,17.0,20.425,20.415,20.0]
[1680468807760,10.0,20.425,20.415,20.0]
[1680468807944,17.0,20.424,20.415,20.0]
[1680468808555,17.0,20.424,20.414,10.0]
[1680468808756,17.0,20.424,20.415,20.0]
[1680468810453,10.0,20.425,20.415,20.0]
[1680468810762,17.0,20.424,20.415,20.0]
[1680468811659,10.0,20.425,20.415,20.0]
[1680468811858,17.0,20.424,20.415,20.0]
[1680468813067,17.0,20.424,20.414,10.0]
[1680468813264,17.0,20.424,20.416,10.0]
[1680468813469,10.0,20.425,20.416,10.0]
[1680468813648,17.0,20.424,20.414,10.0]
[1680468813847,17.0,20.424,20.416,10.0]
[1680468814261,17.0,20.424,20.414,10.0]
[1680468814463,17.0,20.424,20.416,10.0]
[1680468815049,10.0,20.425,20.415,20.0]
[1680468815261,17.0,20.424,20.415,20.0]
[1680468816558,17.0,20.424,20.414,10.0]
[1680468816754,17.0,20.424,20.415,20.0]
[1680468817061,17.0,20.424,20.416,10.0]
[1680468817263,17.0,20.424,20.415,20.0]
[1680468818064,17.0,20.424,20.414,10.0]
[1680468818268,17.0,20.424,20.415,20.0]
[1680468818464,17.0,20.426,20.415,20.0]
[1680468818651,10.0,20.425,20.415,20.0]
[1680468818851,10.0,20.423,20.414,10.0]
[1680468819051,17.0,20.422,20.415,20.0]
[1680468819469,17.0,20.422,20.414,10.0]
[1680468819659,17.0,20.422,20.415,20.0]
[1680468820266,17.0,20.422,20.414,10.0]
[1680468820465,17.0,20.422,20.415,20.0]
[1680468820766,10.0,20.423,20.415,20.0]
[1680468820967,17.0,20.422,20.414,10.0]
[1680468821266,17.0,20.422,20.415,20.0]
[1680468821448,17.0,20.422,20.413,20.0]
[1680468822772,10.0,20.423,20.413,20.0]
[1680468823073,10.0,20.421,20.413,20.0]
[1680468823262,10.0,20.423,20.413,20.0]
[1680468823574,17.0,20.42,20.413,20.0]
[1680468823871,17.0,20.422,20.413,20.0]
[1680468824172,17.0,20.422,20.413,10.0]
[1680468824349,17.0,20.422,20.415,10.0]
[1680468824555,17.0,20.422,20.412,20.0]
[1680468826958,10.0,20.423,20.412,20.0]
[1680468827158,10.0,20.421,20.412,20.0]
[1680468827360,17.0,20.42,20.412,20.0]
[1680468827660,17.0,20.42,20.412,10.0]
[1680468827860,17.0,20.42,20.413,20.0]
[1680468828074,17.0,20.422,20.413,20.0]
[1680468829379,17.0,20.422,20.412,10.0]
[1680468829573,17.0,20.422,20.413,20.0]
[1680468831078,17.0,20.422,20.412,10.0]
[1680468831263,17.0,20.422,20.413,20.0]
[1680468833083,7.37705917,20.428,20.414,10.0]
[1680468833272,25.28796592,20.452,20.415,20.0]
[1680468833472,22.62,20.43,20.416,10.0]
[1680468834468,22.62,20.43,20.415,20.0]
[1680468835385,10.0,20.425,20.415,20.0]
[1680468837479,17.0,20.426,20.415,20.0]
[1680468841487,17.0,20.426,20.414,10.0]
[1680468841689,17.0,20.426,20.416,10.0]
[1680468842288,17.0,20.426,20.414,10.0]
[1680468842489,17.0,20.426,20.416,10.0]
[1680468843589,17.0,20.426,20.415,20.0]
[1680468846277,10.0,20.425,20.413,20.0]
[1680468846475,17.0,20.424,20.413,20.0]
[1680468849880,10.0,20.423,20.413,20.0]
[1680468850080,17.0,20.422,20.411,20.0]
[1680468850286,10.0,20.421,20.408,30.0]
[1680468850485,10.0,20.419,20.409,10.0]
[1680468850684,10.0,20.421,20.411,10.0]
[1680468850887,17.0,20.418,20.412,20.0]
[1680468851383,10.0,20.419,20.412,20.0]
[1680468851583,17.0,20.418,20.411,10.0]
[1680468851783,17.0,20.418,20.412,20.0]
[1680468851985,17.0,20.42,20.412,20.0]
[1680468852782,10.0,20.421,20.412,20.0]
[1680468852981,17.0,20.42,20.412,20.0]
[1680468853497,17.0,20.42,20.411,10.0]
[1680468853699,17.0,20.42,20.412,20.0]
[1680468854283,10.0,20.421,20.412,20.0]
[1680468854486,17.0,20.42,20.412,20.0]
[1680468855001,17.0,20.42,20.411,10.0]
[1680468855185,17.0,20.42,20.412,20.0]
[1680468855796,17.0,20.42,20.409,10.0]
[1680468855797,17.0,20.42,20.411,10.0]
[1680468855996,17.0,20.42,20.412,20.0]
[1680468856193,39.83,20.42,20.385,51.49773771]
[1680468856390,10.0,20.419,20.406,10.0]
[1680468856586,10.0,20.417,20.406,10.0]
[1680468856785,17.0,20.416,20.406,10.0]
[1680468856997,10.0,20.415,20.406,10.0]
[1680468857296,17.0,20.416,20.406,10.0]
[1680468858092,10.0,20.417,20.406,10.0]
[1680468858288,17.0,20.416,20.406,10.0]
[1680468859199,17.0,20.416,20.401,131.600269]
[1680468860395,10.0,20.417,20.401,131.600269]
[1680468860598,10.0,20.415,20.401,131.600269]
[1680468860804,17.0,20.414,20.401,131.600269]
[1680468860989,10.0,20.413,20.401,131.600269]
[1680468861197,17.0,20.412,20.401,131.600269]
[1680468861799,49.0,20.439,20.406,10.0]
[1680468862104,10.0,20.417,20.406,10.0]
[1680468862311,17.0,20.416,20.406,10.0]
[1680468863884,10.0,20.417,20.406,10.0]
[1680468864091,17.0,20.416,20.406,10.0]
[1680468864904,10.0,20.417,20.406,10.0]
[1680468865085,17.0,20.416,20.406,10.0]
[1680468865690,10.0,20.417,20.406,10.0]
[1680468865890,17.0,20.416,20.406,10.0]
[1680468866594,10.0,20.417,20.406,10.0]
[1680468866794,17.0,20.416,20.406,10.0]
[1680468868012,10.0,20.417,20.406,10.0]
[1680468868219,10.0,20.415,20.401,112.011]
[1680468868422,10.0,20.417,20.401,112.011]
[1680468868708,17.0,20.416,20.401,112.011]
[1680468869923,22.69,20.42,20.406,10.0]
[1680468870121,10.0,20.417,20.406,10.0]
[1680468871320,10.0,20.415,20.406,10.0]
[1680468871613,17.0,20.418,20.406,10.0]
[1680468876618,10.0,20.418,20.406,10.0]
[1680468876824,10.0,20.416,20.406,10.0]
[1680468877321,17.0,20.417,20.406,10.0]
[1680468878221,17.0,20.417,20.402,10.0]
[1680468881323,17.0,20.417,20.406,10.0]
[1680468881618,22.69,20.43,20.406,10.0]
[1680468881923,10.0,20.419,20.406,10.0]
[1680468884218,17.0,20.42,20.406,10.0]
[1680468891225,17.0,20.42,20.402,10.0]
[1680468891531,17.0,20.42,20.406,10.0]
[1680468894716,142.9592913,20.427,20.41,22.83]
[1680468894916,142.9592913,20.427,20.412,10.0]
[1680468895118,128.1253,20.427,20.413,20.0]
[1680468895330,128.1253,20.427,20.414,10.0]
[1680468896422,10.0,20.425,20.414,10.0]
[1680468897632,10.0,20.425,20.413,20.0]
[1680468899841,17.0,20.426,20.413,20.0]
[1680468912023,118.1253,20.427,20.414,10.0]
[1680468912743,22.83,20.43,20.414,10.0]
[1680468913051,17.37705917,20.434,20.42,22.83]
[1680468914031,22.83,20.43,20.416,129.5807]
[1680468914242,27.0,20.429,20.416,129.5807]
[1680468917063,17.0,20.429,20.416,129.5807]
[1680468919246,22.83,20.43,20.416,129.5807]
[1680468919860,7.37705917,20.433,20.421,10.0]
[1680468920056,10.0,20.431,20.421,10.0]
[1680468920559,10.0,20.431,20.42,22.83]
[1680468923645,17.0,20.432,20.42,22.83]
[1680468925352,10.0,20.432,20.42,22.83]
[1680468928463,10.0,20.434,20.42,22.83]
[1680468930673,10.0,20.437,20.421,10.0]
[1680468930873,10.0,20.435,20.421,10.0]
[1680468932463,10.0,20.446,20.423,10.0]
[1680468932663,10.0,20.446,20.424,37.0]
[1680468932859,10.0,20.446,20.43,22.82]
[1680468933062,10.0,20.446,20.431,128.6143]
[1680468934158,10.0,20.444,20.431,128.6143]
[1680468935168,10.0,20.442,20.431,128.6143]
[1680468936280,19.577531,20.443,20.431,128.6143]
[1680468936759,19.577531,20.443,20.432,20.0]
[1680468937474,19.577531,20.443,20.433,17.0]
[1680468937675,19.577531,20.443,20.434,20.0]
[1680468938378,19.577531,20.443,20.435,10.0]
[1680468940369,19.577531,20.443,20.436,17.0]
[1680468940570,19.577531,20.443,20.437,10.0]
[1680468941782,19.577531,20.443,20.435,10.0]
[1680468945312,10.0,20.453,20.435,10.0]
[1680468945472,10.0,20.451,20.435,10.0]
[1680468945674,10.0,20.449,20.435,10.0]
[1680468945973,10.0,20.447,20.435,10.0]
[1680468946275,10.0,20.449,20.435,10.0]
[1680468946473,17.0,20.446,20.434,20.0]
[1680468946682,17.0,20.446,20.433,20.0]
[1680468946880,10.0,20.447,20.434,10.0]
[1680468947084,10.0,20.445,20.434,10.0]
[1680468947885,10.0,20.447,20.434,10.0]
[1680468948090,10.0,20.445,20.434,10.0]
[1680468948480,10.0,20.447,20.434,10.0]
[1680468948674,17.0,20.446,20.434,10.0]
[1680468952775,10.0,20.447,20.434,10.0]
[1680468952976,10.0,20.445,20.434,10.0]
[1680468954899,10.0,20.447,20.434,10.0]
[1680468955097,10.0,20.445,20.434,10.0]
[1680468956396,10.0,20.445,20.433,10.0]
[1680468956699,10.0,20.445,20.433,17.37705917]
[1680468957499,10.0,20.445,20.433,7.37705917]
[1680468957798,17.0,20.444,20.433,7.37705917]
[1680468962096,10.0,20.447,20.433,7.37705917]
[1680468962097,10.0,20.445,20.433,7.37705917]
[1680468962298,10.0,20.443,20.433,7.37705917]
[1680468962497,17.0,20.442,20.433,7.37705917]
[1680468962689,10.0,20.447,20.432,20.0]
[1680468962891,10.0,20.447,20.433,10.0]
[1680468963098,495.96423946,20.46,20.433,10.0]
[1680468963307,467.47423946,20.46,20.433,17.37705917]
[1680468964306,467.47423946,20.46,20.434,17.0]
[1680468964488,467.47423946,20.46,20.435,10.0]
[1680468965107,208.54065167,20.46,20.435,10.0]
[1680468965403,113.5928,20.449,20.435,10.0]
[1680468966379,113.5928,20.449,20.436,17.0]
[1680468966583,113.5928,20.449,20.437,10.0]
[1680468966784,208.54065167,20.46,20.437,10.0]
[1680468967084,215.91771084,20.46,20.439,10.0]
[1680468967886,215.91771084,20.46,20.441,10.0]
[1680468968287,10.0,20.456,20.441,10.0]
[1680468968584,10.0,20.454,20.441,10.0]
[1680468968779,10.0,20.452,20.441,10.0]
[1680468969301,10.0,20.454,20.441,10.0]
[1680468969509,17.0,20.453,20.452,0.11843281]
[1680468973511,24.92952918,20.458,20.452,0.11843281]
[1680468973716,14.92952918,20.458,20.452,0.11843281]
[1680468973919,10.0,20.456,20.452,0.11843281]
[1680468974103,17.0,20.455,20.452,0.11843281]
[1680468974603,17.0,20.455,20.452,0.00107992]
[1680468978423,10.0,20.459,20.452,0.00107992]
[1680468979109,108.8245,20.46,20.452,0.00107992]
[1680468979902,10.0,20.459,20.452,0.00107992]
[1680468983427,108.8245,20.46,20.452,0.00107992]
[1680468983625,10.0,20.458,20.452,0.00107992]
[1680468985227,17.0,20.459,20.452,0.00107992]
[1680468986304,108.8245,20.46,20.452,0.00107992]
[1680468987426,7.37705917,20.463,20.452,0.00107992]
[1680468987828,10.0,20.461,20.452,0.00107992]
[1680468991310,17.0,20.46,20.452,0.00107992]
[1680468991516,10.0,20.459,20.452,0.00107992]
[1680468991817,10.0,20.457,20.442,20.0]
[1680468992132,17.0,20.456,20.44,20.0]
[1680468992307,24.37705917,20.456,20.44,20.0]
[1680468992509,10.0,20.455,20.44,20.0]
[1680468992707,17.0,20.454,20.44,20.0]
[1680468992908,10.0,20.453,20.44,20.0]
[1680468993113,10.0,20.451,20.44,20.0]
[1680468993311,10.0,20.449,20.44,20.0]
[1680468994221,10.0,20.453,20.441,10.0]
[1680468994417,17.0,20.454,20.442,20.0]
[1680468994618,17.0,20.454,20.443,10.0]
[1680468995924,132.37225917,20.459,20.443,10.0]
[1680468996932,124.9952,20.459,20.443,10.0]
[1680469000031,124.9952,20.459,20.442,20.0]
[1680469000340,17.0,20.456,20.442,10.0]
[1680469000535,10.0,20.455,20.443,20.0]
[1680469000737,10.0,20.453,20.443,20.0]
[1680469001235,10.0,20.451,20.443,20.0]
[1680469001422,10.0,20.451,20.441,20.0]
[1680469001622,10.0,20.451,20.442,10.0]
[1680469001828,10.0,20.451,20.443,20.0]
[1680469002133,10.0,20.453,20.443,20.0]
[1680469002633,17.0,20.452,20.443,20.0]
[1680469002834,17.0,20.452,20.442,10.0]
[1680469003034,17.0,20.452,20.443,20.0]
[1680469004345,16.92063372,20.452,20.443,20.0]
[1680469004634,16.92063372,20.452,20.442,10.0]
[1680469004837,10.0,20.455,20.444,10.0]
[1680469006036,10.0,20.455,20.442,10.0]
[1680469006237,10.0,20.455,20.444,10.0]
[1680469006638,10.0,20.453,20.442,10.0]
[1680469006833,17.0,20.452,20.444,10.0]
[1680469007032,17.0,20.452,20.442,10.0]
[1680469007331,17.0,20.452,20.444,10.0]
[1680469007535,17.0,20.452,20.442,10.0]
[1680469007728,17.0,20.452,20.444,10.0]
[1680469007933,17.0,20.452,20.442,10.0]
[1680469008141,17.0,20.452,20.444,10.0]
[1680469008440,10.0,20.453,20.444,10.0]
[1680469008737,17.0,20.452,20.442,10.0]
[1680469008944,17.0,20.452,20.444,10.0]
[1680469009236,10.0,20.456,20.444,10.0]
[1680469009422,17.0,20.455,20.444,10.0]
[1680469013030,10.0,20.457,20.444,10.0]
[1680469013537,10.0,20.455,20.444,10.0]
[1680469014140,10.0,20.457,20.444,10.0]
[1680469016444,113.6328,20.46,20.444,10.0]
[1680469016743,17.0,20.457,20.444,10.0]
[1680469016944,10.0,20.456,20.444,10.0]
[1680469017745,113.6328,20.46,20.444,10.0]
[1680469018546,10.0,20.458,20.444,10.0]
[1680469019133,27.0,20.459,20.444,10.0]
[1680469023341,10.0,20.458,20.444,10.0]
[1680469035370,10.0,20.458,20.443,34.79180746]
[1680469039850,10.0,20.458,20.445,10.0]
[1680469040657,10.0,20.458,20.444,117.5761]
[1680469040865,17.0,20.457,20.444,117.5761]
[1680469041066,10.0,20.456,20.443,20.0]
[1680469041243,17.0,20.455,20.442,20.0]
[1680469041449,10.0,20.454,20.439,20.0]
[1680469041758,10.0,20.452,20.439,20.0]
[1680469041946,10.0,20.45,20.439,20.0]
[1680469043760,10.0,20.452,20.439,20.0]
[1680469043952,10.0,20.45,20.439,20.0]
[1680469047767,10.0,20.45,20.439,20.0]
[1680469049860,17.0,20.451,20.439,20.0]
[1680469052576,17.0,20.451,20.438,19.555096]
[1680469052777,10.0,20.45,20.438,19.555096]
[1680469052968,10.0,20.448,20.438,19.555096]
[1680469053873,10.0,20.446,20.433,10.0]
[1680469054078,10.0,20.446,20.435,10.0]
[1680469054968,17.0,20.447,20.435,10.0]
[1680469056582,17.0,20.447,20.433,10.0]
[1680469056766,17.0,20.447,20.435,10.0]
[1680469060682,17.0,20.447,20.434,19.559295]
[1680469062376,10.0,20.448,20.434,19.559295]
[1680469062576,108.793,20.449,20.436,10.0]
[1680469072387,108.793,20.449,20.435,27.0]